bitfinex/quotes_ETHUSD_20220109
["timestamp","ask_amount","ask_price","bid_price","bid_amount"]
[1641699310485,0.00170527,3140.9,3140.8,2.04283986]
[1641699310686,0.00170527,3140.9,3140.7,0.61548274]
[1641699310984,0.00113685,3140.8,3140.7,0.61548274]
[1641699311185,0.00113685,3140.8,3140.7,2.60509662]
[1641699311384,0.00113685,3140.8,3140.7,2.61636897]
[1641699311591,0.00113685,3140.8,3140.4,0.79616]
[1641699311785,0.00113685,3140.8,3140.5,2.04916407]
[1641699312043,0.00113685,3140.8,3140.3,1.91206331]
[1641699312237,0.00113685,3140.8,3140.2,1.1283]
[1641699312238,1.59371685,3140.8,3140.2,1.1283]
[1641699312437,1.59371685,3140.8,3140.4,0.00113685]
[1641699312636,1.59371685,3140.8,3140.3,0.00170527]
[1641699313037,1.42406862,3140.8,3140.2,0.00227369]
[1641699313242,1.42406862,3140.8,3140.1,0.00397897]
[1641699313440,1.42406862,3140.8,3140.0,0.00454739]
[1641699313840,1.42406862,3140.8,3139.9,0.00511581]
[1641699315540,4.62406862,3140.8,3139.9,0.00511581]
[1641699315982,1.0,3140.7,3139.9,0.00511581]
[1641699317386,1.0,3140.7,3139.9,1.97617663]
[1641699317583,5.42056862,3140.8,3139.9,1.97617663]
[1641699317785,5.42056862,3140.8,3140.0,0.00454739]
[1641699317786,4.62406862,3140.8,3140.0,0.00454739]
[1641699318183,4.62406862,3140.8,3139.9,1.93081704]
[1641699318384,4.62406862,3140.8,3140.0,0.00454739]
[1641699319638,1.0,3140.7,3140.0,0.00454739]
[1641699319935,1.0,3140.7,3140.5,1.60161366]
[1641699320334,1.0,3140.7,3140.6,0.00113685]
[1641699321333,1.0,3140.7,3140.5,0.00170527]
[1641699321934,1.0,3140.7,3140.5,1.60331893]
[1641699322335,1.0,3140.7,3140.6,0.00113685]
[1641699323139,1.0,3140.7,3140.5,0.00170527]
[1641699323588,0.79628,3140.7,3140.5,0.00170527]
[1641699324288,0.79628,3140.7,3140.6,1.60161366]
[1641699324691,0.79628,3140.7,3140.6,1.60275051]
[1641699326490,0.79628,3140.7,3140.6,0.00113685]
[1641699327132,0.79628,3140.7,3140.6,1.60275051]
[1641699327932,0.79628,3140.7,3140.6,0.00113685]
[1641699328341,0.79628,3140.7,3140.4,0.0022737]
[1641699329535,0.79628,3140.7,3140.6,1.60085897]
[1641699329839,0.79628,3140.7,3140.6,1.60199582]
[1641699331284,3.2,3140.8,3140.6,1.60199582]
[1641699331285,3.2,3140.8,3140.6,8.85932204]
[1641699331484,3.2,3140.8,3140.7,2.11672115]
[1641699332490,3.2,3140.8,3140.6,0.96073685]
[1641699332686,3.2,3140.8,3140.6,2.55295245]
[1641699332886,3.2,3140.8,3140.7,1.89546576]
[1641699334087,3.2,3140.8,3140.6,1.59335245]
[1641699334731,3.2,3140.8,3140.7,1.90632217]
[1641699335933,3.2,3140.8,3140.7,2.20632217]
[1641699336134,0.83152438,3141.0,3140.8,3.75]
[1641699336333,0.83152438,3141.0,3140.9,2.02552358]
[1641699336733,0.83266122,3141.0,3140.9,2.02552358]
[1641699339181,0.83266122,3141.0,3140.6,0.00113685]
[1641699339581,0.83266122,3141.0,3140.5,0.00170527]
[1641699340082,0.83266122,3141.0,3140.9,1.59694892]
[1641699342134,1.59239,3141.2,3140.9,1.59694892]
[1641699342534,2.59239,3141.2,3140.9,1.59694892]
[1641699342732,2.59239,3141.2,3140.4,2.74317629]
[1641699343133,2.59239,3141.2,3140.5,0.00284211]
[1641699343535,2.59239,3141.2,3140.9,1.59736337]
[1641699344435,1.59239,3141.2,3140.9,1.59736337]
[1641699344935,2.59239,3141.2,3140.9,1.59736337]
[1641699345135,1.59239,3141.2,3140.9,1.59736337]
[1641699346187,4.79239,3141.2,3140.9,1.59736337]
[1641699346989,1.59239,3141.2,3140.9,1.59736337]
[1641699348489,1.59239,3141.2,3140.8,1.59736337]
[1641699349389,1.59239,3141.2,3141.0,1.59736337]
[1641699350235,1.59239,3141.2,3140.8,1.59736337]
[1641699350434,1.59239,3141.2,3141.0,2.3887024]
[1641699350639,1.59239,3141.2,3141.0,2.6887024]
[1641699351034,1.59239,3141.2,3141.0,4.28606577]
[1641699352034,1.59239,3141.2,3141.1,1.59736337]
[1641699352434,1.59352685,3141.2,3141.1,1.59736337]
[1641699353139,1.59352685,3141.2,3141.1,3.5237817]
[1641699353583,1.59352685,3141.2,3141.1,1.59736337]
[1641699354984,0.796,3141.6,3141.2,5.35]
[1641699355186,6.16,3141.7,3141.4,0.55958956]
[1641699355386,6.16,3141.7,3141.5,2.22236624]
[1641699355985,5.8998,3142.4,3141.5,2.22236624]
[1641699356385,5.8998,3142.4,3141.6,1.59736337]
[1641699356386,0.00625266,3142.3,3141.6,1.59736337]
[1641699356586,0.00625266,3142.3,3141.6,1.89736337]
[1641699356787,0.00568424,3142.2,3141.6,1.89736337]
[1641699357235,0.00511581,3142.1,3141.6,1.89736337]
[1641699357435,0.00511581,3142.1,3141.6,0.3]
[1641699357634,2.38805,3142.3,3141.5,1.59736337]
[1641699357635,0.00454739,3142.0,3141.5,1.59736337]
[1641699357835,0.00454739,3142.0,3141.5,1.89736337]
[1641699358035,0.00397897,3141.9,3141.5,1.89736337]
[1641699358437,0.79606,3141.7,3141.4,1.59736337]
[1641699358636,0.79606,3141.7,3141.4,1.89736337]
[1641699358835,0.79606,3141.7,3141.5,0.7960549]
[1641699358836,0.0022737,3141.6,3141.5,0.7960549]
[1641699359037,0.0022737,3141.6,3141.5,3.01943313]
[1641699359238,0.0022737,3141.6,3141.5,1.0960549]
[1641699360640,0.0022737,3141.6,3141.5,3.02735754]
[1641699361686,0.0022737,3141.6,3141.5,4.62472091]
[1641699362986,0.0022737,3141.6,3141.5,3.02735754]
[1641699363186,0.79606,3141.7,3141.5,3.82331754]
[1641699363388,0.79606,3141.7,3141.6,2.28846586]
[1641699364189,1.59184,3142.2,3141.6,2.28846586]
[1641699364389,1.59184,3142.2,3141.5,2.6830795]
[1641699364637,0.00113684,3141.8,3141.5,2.6830795]
[1641699364836,0.00113684,3141.8,3141.6,2.7554513]
[1641699365235,0.00113684,3141.8,3141.7,1.91398386]
[1641699365436,0.00113684,3141.8,3141.7,2.21398386]
[1641699365839,0.79706684,3141.8,3141.7,1.94526208]
[1641699367038,0.00113684,3141.8,3141.7,1.94526208]
[1641699371293,0.00113684,3141.8,3141.7,3.52920176]
[1641699372136,0.00113684,3141.8,3141.7,1.94526208]
[1641699372735,0.00113684,3141.8,3141.7,1.92477161]
[1641699372938,0.00113684,3141.8,3141.6,1.09593]
[1641699373136,0.79706684,3141.8,3141.7,1.91684634]
[1641699373336,0.00113684,3141.8,3141.7,1.91684634]
[1641699373746,0.00113684,3141.8,3141.7,3.5021226]
[1641699374235,0.00113684,3141.8,3141.7,1.58527626]
[1641699374435,0.00113684,3141.8,3141.6,1.09593]
[1641699374637,0.00113684,3141.8,3141.7,1.94589356]
[1641699375536,0.00113684,3141.8,3141.7,3.53041498]
[1641699376190,0.00113684,3141.8,3141.7,1.94589356]
[1641699378594,1.59173,3142.4,3141.7,1.94589356]
[1641699378996,0.00284212,3142.3,3141.7,1.94589356]
[1641699379198,0.79589,3142.2,3141.7,1.94589356]
[1641699379396,0.7981637,3142.2,3141.7,1.94589356]
[1641699379637,0.00170527,3142.1,3141.7,1.94589356]
[1641699379839,0.00170527,3142.1,3141.7,2.74178356]
[1641699380037,0.00113685,3142.0,3141.8,1.58002565]
[1641699380237,0.00113685,3142.0,3141.9,1.92366402]
[1641699380438,0.7959,3142.0,3141.9,2.22366402]
[1641699380642,0.79703685,3142.0,3141.9,2.22366402]
[1641699381846,0.79703685,3142.0,3141.9,1.88002565]
[1641699382641,0.76187061,3142.2,3141.8,3.79828732]
[1641699382843,0.76187061,3142.2,3141.8,1.88002565]
[1641699383042,0.76187061,3142.2,3141.8,3.79918703]
[1641699383284,0.76187061,3142.2,3141.8,3.80984109]
[1641699383485,0.76187061,3142.2,3141.8,1.88002565]
[1641699383685,0.76187061,3142.2,3141.9,1.93571052]
[1641699384286,0.76187061,3142.2,3141.9,1.96709187]
[1641699384685,0.79585,3142.2,3141.9,1.96709187]
[1641699384886,0.79585,3142.2,3141.9,2.78759187]
[1641699385686,0.79585,3142.2,3141.9,3.58344187]
[1641699385987,0.79585,3142.2,3142.0,0.3]
[1641699386788,0.79585,3142.2,3141.9,0.3]
[1641699387041,0.79585,3142.2,3141.8,1.58002565]
[1641699387042,0.79585,3142.2,3141.8,1.88002565]
[1641699387641,0.79585,3142.2,3141.8,0.3]
[1641699387838,0.79585,3142.2,3141.7,1.58002565]
[1641699388038,0.79585,3142.2,3141.7,1.88002565]
[1641699388239,0.79585,3142.2,3141.8,0.00113685]
[1641699388840,0.79585,3142.2,3141.8,0.30113685]
[1641699389042,0.79585,3142.2,3141.7,0.00170527]
[1641699389438,0.79585,3142.2,3141.7,1.88173092]
[1641699390241,0.79585,3142.2,3141.8,1.93247795]
[1641699390438,0.79585,3142.2,3141.7,1.88173092]
[1641699391387,0.79585,3142.2,3141.8,1.93450556]
[1641699391992,0.83109128,3142.5,3141.8,1.93450556]
[1641699392192,4.81259595,3142.6,3141.8,1.93450556]
[1641699392388,4.81259595,3142.6,3142.3,0.79572]
[1641699392590,4.81259595,3142.6,3142.3,1.74782]
[1641699392794,4.81259595,3142.6,3142.4,1.92692756]
[1641699392991,4.81259595,3142.6,3142.4,1.93396891]
[1641699393191,4.81259595,3142.6,3142.4,1.90516093]
[1641699393591,4.81259595,3142.6,3142.4,2.70089093]
[1641699393795,5.60833595,3142.6,3142.4,3.49660453]
[1641699393992,5.60833595,3142.6,3142.5,0.3]
[1641699394192,5.60833595,3142.6,3142.5,2.21357752]
[1641699394393,5.61174649,3142.6,3142.5,0.3]
[1641699395943,5.61174649,3142.6,3142.5,2.20039483]
[1641699396146,4.81600649,3142.6,3142.5,2.20039483]
[1641699396545,4.81600649,3142.6,3142.5,0.3]
[1641699397544,0.47811622,3142.6,3142.5,1.88002565]
[1641699398143,0.47811622,3142.6,3142.5,0.3]
[1641699398991,0.47811622,3142.6,3142.5,1.87815626]
[1641699399594,0.47811622,3142.6,3142.5,4.17189962]
[1641699399795,0.47811622,3142.6,3142.5,4.32049962]
[1641699399997,1.59136,3143.1,3142.6,5.15]
[1641699400197,1.59136,3143.1,3142.6,5.9597]
[1641699400393,0.00227369,3143.0,3142.6,5.9597]
[1641699400596,0.00227369,3143.0,3142.8,0.79562]
[1641699400794,0.00170527,3142.9,3142.8,0.79562]
[1641699401395,0.00170527,3142.9,3142.6,0.8097]
[1641699401696,0.00113685,3142.8,3142.6,0.8097]
[1641699401896,0.00113685,3142.8,3142.7,2.19631647]
[1641699402161,0.00113685,3142.8,3142.7,2.22273724]
[1641699403559,0.00113685,3142.8,3142.7,3.01835724]
[1641699404661,0.00113685,3142.8,3142.7,5.40520854]
[1641699405260,0.00113685,3142.8,3142.7,4.60958854]
[1641699407696,0.00113685,3142.8,3142.7,5.00568854]
[1641699410739,0.79562,3143.0,3142.7,5.00568854]
[1641699410740,0.74675685,3143.0,3142.7,5.00568854]
[1641699410940,0.74675685,3143.0,3142.8,0.7956194]
[1641699411141,0.74675685,3143.0,3142.9,1.97677454]
[1641699411541,0.74789369,3143.0,3142.9,1.97677454]
[1641699411942,0.00113684,3143.0,3142.9,1.97677454]
[1641699412742,2.2233,3143.7,3142.8,1.5912394]
[1641699412945,2.2233,3143.7,3142.9,1.9266966]
[1641699413143,0.79561,3143.2,3142.8,0.79562]
[1641699413394,0.79561,3143.2,3142.9,2.28356776]
[1641699413590,0.00284212,3143.5,3143.0,1.0442944]
[1641699413790,0.00284212,3143.5,3143.3,0.58706468]
[1641699413990,5.1671,3144.2,3143.3,0.58706468]
[1641699414390,0.79944897,3143.7,3143.3,1.38254468]
[1641699414591,0.79944897,3143.7,3143.5,0.7954608]
[1641699414792,0.00341054,3143.6,3143.5,0.7954608]
[1641699414990,0.00341054,3143.6,3143.4,1.5909216]
[1641699415191,0.00341054,3143.6,3143.4,3.16341868]
[1641699415396,0.00284212,3143.5,3143.4,3.16341868]
[1641699415594,0.00284212,3143.5,3143.4,3.95887868]
[1641699415792,0.00284212,3143.5,3143.4,6.32388808]
[1641699415994,0.00284212,3143.5,3143.4,4.751391]
[1641699420345,0.00284212,3143.5,3143.4,1.5909216]
[1641699420645,0.00284212,3143.5,3142.9,1.2018]
[1641699420646,0.00284212,3143.5,3143.2,0.7957165]
[1641699420898,0.00284212,3143.5,3142.9,0.1566]
[1641699421094,0.01475566,3143.4,3142.9,0.1566]
[1641699421297,0.7958,3143.2,3142.9,0.1566]
[1641699422093,0.83092586,3143.1,3142.9,0.9523854]
[1641699422693,1.0001619,3143.2,3142.9,0.9523854]
[1641699423598,0.7959319,3143.2,3142.9,0.9523854]
[1641699423793,1.7959319,3143.2,3142.9,0.9523854]
[1641699423995,1.7959319,3143.2,3142.6,0.9523854]
[1641699424196,1.7959319,3143.2,3141.7,2.26791824]
[1641699424197,0.458,3143.1,3141.7,2.26791824]
[1641699424394,0.79596,3143.0,3142.7,0.00170527]
[1641699424643,0.84741878,3143.0,3142.0,1.5918359]
[1641699424845,5.40145878,3142.9,3142.0,1.5918359]
[1641699425046,3.0,3142.8,3141.8,0.00511581]
[1641699425244,3.0,3142.3,3141.1,2.26791824]
[1641699425446,0.458,3142.2,3140.1,2.26791824]
[1641699425644,1.7602737,3142.2,3141.6,0.00113684]
[1641699425844,5.35170527,3142.1,3140.7,3.06414134]
[1641699426043,5.35170527,3142.1,3140.8,0.00568423]
[1641699426044,0.458,3142.0,3140.8,0.00568423]
[1641699426247,0.458,3142.0,3140.9,0.53622456]
[1641699426248,1.46027369,3142.0,3140.9,0.53622456]
[1641699426445,0.00170527,3141.9,3141.0,2.26791824]
[1641699426645,0.05332967,3141.9,3141.0,0.00341055]
[1641699426843,1.59247,3141.7,3141.1,0.00284212]
[1641699427047,2.59247,3141.7,3140.9,0.00397897]
[1641699427646,2.59247,3141.7,3140.8,0.00454739]
[1641699428493,0.0516244,3141.6,3140.6,0.00568424]
[1641699429496,0.0516244,3141.6,3140.6,0.80193134]
[1641699429797,0.0516244,3141.6,3140.7,0.00511582]
[1641699430296,0.0516244,3141.6,3140.4,0.00682109]
[1641699430497,0.458,3141.5,3140.4,0.00682109]
[1641699430695,0.458,3141.5,3140.3,0.00738951]
[1641699430696,2.05085,3141.5,3140.3,0.00738951]
[1641699430895,0.0516244,3141.4,3140.0,1.60170828]
[1641699431095,3.5373444,3141.4,3140.1,0.00852636]
[1641699431501,1.0516244,3141.3,3140.1,0.00852636]
[1641699431696,2.6444844,3141.3,3140.4,1.5816677]
[1641699431896,0.0516244,3141.2,3140.4,1.5816677]
[1641699432140,0.0516244,3141.2,3140.5,0.00625266]
[1641699432943,0.8480444,3141.2,3140.5,0.00625266]
[1641699433144,0.8480444,3141.2,3140.4,0.00682109]
[1641699433347,0.0516244,3141.1,3140.4,0.00682109]
[1641699433544,1.0516244,3141.1,3140.4,0.00682109]
[1641699433945,0.0516244,3141.0,3140.4,0.00682109]
[1641699434148,0.0516244,3141.0,3140.3,0.00738951]
[1641699434545,0.458,3140.9,3140.3,0.00738951]
[1641699434746,5.35,3140.8,3139.3,16.6146]
[1641699434946,5.4016244,3140.8,3139.2,5.54715044]
[1641699435245,1.05389809,3140.7,3139.4,0.00511581]
[1641699435446,1.05389809,3140.7,3139.0,2.02282035]
[1641699435447,5.35,3140.6,3139.0,2.02282035]
[1641699435648,5.35,3140.6,3138.9,3.1138946]
[1641699435649,1.0,3140.5,3138.9,3.1138946]
[1641699435902,1.35787706,3140.5,3139.1,0.00170527]
[1641699436099,0.05730863,3140.4,3139.1,0.00170527]
[1641699436500,0.00511581,3140.3,3139.1,0.00170527]
[1641699436901,0.8482544,3140.4,3139.1,0.79827867]
[1641699436902,0.00454739,3140.2,3139.1,0.79827867]
[1641699437301,0.00397896,3140.1,3139.2,0.00113685]
[1641699437508,0.8482544,3140.4,3139.3,3.7]
[1641699437703,2.4415044,3140.4,3139.2,0.00511581]
[1641699437903,0.00113685,3140.3,3139.4,0.00397896]
[1641699438106,0.00113685,3140.3,3139.0,0.00625265]
[1641699438503,0.00113685,3140.3,3139.1,0.7966026]
[1641699438905,0.00113685,3140.3,3139.2,0.00511581]
[1641699439105,1.00113685,3140.3,3139.2,0.00511581]
[1641699439309,0.0516244,3140.2,3139.2,0.00511581]
[1641699439545,3.0,3139.9,3139.2,0.00511581]
[1641699439747,0.458,3140.1,3138.7,0.00795793]
[1641699439748,3.0,3139.4,3138.7,0.00795793]
[1641699439947,3.0,3139.4,3137.9,5.42714351]
[1641699439948,2.58912997,3138.2,3137.9,5.42714351]
[1641699440147,2.58912997,3138.2,3137.1,8.01203634]
[1641699440148,5.42714351,3137.9,3137.1,7.99977404]
[1641699440545,1.0,3137.8,3137.2,0.00852635]
[1641699440745,1.0,3137.8,3137.5,5.42736217]
[1641699440746,1.0516244,3137.8,3137.5,5.42736217]
[1641699441144,0.0516244,3137.7,3137.6,0.00625265]
[1641699441348,0.0516244,3137.7,3137.5,5.42736217]
[1641699441349,5.35,3137.6,3137.5,5.42736217]
[1641699441547,5.35,3137.6,3137.5,3.87882601]
[1641699441548,6.35,3137.6,3137.5,3.87882601]
[1641699441745,6.35,3137.6,3136.5,7.99977404]
[1641699441951,1.0,3137.5,3136.5,7.99977404]
[1641699442146,0.7973,3137.4,3136.6,0.00568424]
[1641699442350,4.92513939,3137.7,3136.6,0.00568424]
[1641699442547,2.4041144,3137.7,3136.6,0.00568424]
[1641699442748,2.4041144,3137.7,3136.5,0.00625266]
[1641699443397,5.29346924,3137.7,3136.5,0.00625266]
[1641699443890,0.7973,3137.4,3136.4,0.00682108]
[1641699444092,0.7973,3137.4,3137.2,1.58106507]
[1641699444494,0.7973,3137.4,3137.3,0.00170527]
[1641699445090,0.7973,3137.4,3137.3,1.58277034]
[1641699446495,5.42714351,3137.9,3137.3,2.59477034]
[1641699446894,5.42714351,3137.9,3137.4,0.00113685]
[1641699446895,0.00113684,3137.8,3137.4,0.00113685]
[1641699447148,0.00113684,3137.8,3137.4,2.34316471]
[1641699447345,0.00113684,3137.8,3137.4,0.00113685]
[1641699447745,0.00113684,3137.8,3137.0,2.34202786]
[1641699447746,0.00113684,3137.8,3137.0,6.3061218]
[1641699447946,0.00113684,3137.8,3137.1,0.00284212]
[1641699448347,0.00113684,3137.8,3137.2,1.33603719]
[1641699448548,0.00113684,3137.8,3137.3,2.64202786]
[1641699448549,3.20113684,3137.8,3137.3,2.64202786]
[1641699448748,3.20113684,3137.8,3137.3,2.64373313]
[1641699448948,3.20113684,3137.8,3137.4,0.00113685]
[1641699449549,0.79712,3137.7,3137.4,0.00113685]
[1641699449751,0.79712,3137.7,3137.1,0.00284212]
[1641699450548,5.42714351,3137.9,3137.6,1.56619815]
[1641699450549,2.18567895,3137.9,3137.6,1.56619815]
[1641699450806,2.18567895,3137.9,3137.6,1.86619815]
[1641699450993,2.23730335,3137.9,3137.6,1.86619815]
[1641699451193,2.23730335,3137.9,3137.6,0.3]
[1641699451693,2.23730335,3137.9,3137.1,0.00397896]
[1641699451894,3.03446335,3137.9,3137.6,1.56470799]
[1641699452095,1.0,3137.8,3137.6,1.86470799]
[1641699452495,3.22330861,3138.2,3137.6,1.86470799]
[1641699452696,1.0,3138.1,3137.6,1.86470799]
[1641699452895,1.00170527,3138.1,3137.6,1.86470799]
[1641699453095,1.00170527,3138.1,3137.7,1.56470799]
[1641699453297,3.67833817,3138.4,3137.7,1.56470799]
[1641699453496,0.79719,3138.3,3137.8,0.00170527]
[1641699453695,0.79832685,3138.3,3137.8,0.00170527]
[1641699454097,0.458,3138.2,3137.8,0.00170527]
[1641699454665,5.35,3137.9,3136.8,3.9606834]
[1641699454865,0.458,3137.8,3136.8,3.9606834]
[1641699455059,0.458,3137.8,3136.9,0.00511581]
[1641699455359,1.458,3137.8,3136.8,0.00568423]
[1641699455560,0.458,3137.8,3136.8,0.00568423]
[1641699456159,0.758,3137.8,3136.8,0.00568423]
[1641699456358,0.458,3137.8,3136.8,0.00568423]
[1641699456559,1.25532,3137.8,3136.8,0.00568423]
[1641699456762,2.05266,3137.8,3136.8,0.00568423]
[1641699456962,2.05266,3137.8,3136.5,1.4266]
[1641699456963,0.79732,3137.5,3136.6,0.00682108]
[1641699457762,0.79732,3137.5,3136.5,0.0073895]
[1641699458163,1.51005654,3137.7,3136.6,5.35]
[1641699458596,1.51005654,3137.7,3136.7,0.00625265]
[1641699458792,0.79732,3137.5,3136.7,0.00625265]
[1641699459694,0.79732,3137.5,3136.9,1.25139736]
[1641699459897,0.79732,3137.5,3136.9,1.55139736]
[1641699460096,0.79732,3137.5,3137.0,0.00454738]
[1641699460296,1.59464,3137.6,3137.0,0.00454738]
[1641699461596,2.59464,3137.6,3136.8,0.00568423]
[1641699461795,0.79732,3137.5,3136.8,0.00568423]
[1641699462448,0.79732,3137.5,3136.8,1.9826602]
[1641699462646,3.90423681,3137.8,3136.8,0.00568423]
[1641699463046,4.20423681,3137.8,3136.8,0.00568423]
[1641699463246,0.79732,3137.5,3136.8,5.99243673]
[1641699464148,0.79732,3137.5,3136.8,3.96636763]
[1641699464347,0.79732,3137.5,3136.8,6.33952329]
[1641699465547,1.41314414,3137.9,3136.8,2.37883989]
[1641699466399,1.41314414,3137.9,3136.8,0.00568423]
[1641699466700,1.41314414,3137.9,3136.8,1.9813979]
[1641699466900,2.21041414,3137.9,3136.8,0.00568423]
[1641699467801,5.21041414,3137.9,3136.7,0.30625265]
[1641699468001,5.21041414,3137.9,3136.8,0.00568423]
[1641699468203,0.79732,3137.7,3136.8,0.00568423]
[1641699468402,0.79733,3137.5,3136.8,0.00568423]
[1641699468803,0.79733,3137.5,3136.7,0.30625265]
[1641699469003,0.83247695,3137.4,3136.8,0.00568423]
[1641699469202,0.67740095,3137.7,3136.8,0.00568423]
[1641699469646,0.79733,3137.5,3136.8,0.00568423]
[1641699470249,0.79733,3137.5,3137.0,1.02535448]
[1641699470447,0.79733,3137.5,3137.0,0.3]
[1641699470647,0.79733,3137.5,3137.1,0.00397896]
[1641699471347,0.79733,3137.5,3136.7,2.19839856]
[1641699471548,0.79733,3137.5,3136.7,2.49839856]
[1641699471748,0.79733,3137.5,3136.8,0.00568423]
[1641699472854,1.59451,3138.0,3136.8,1.98041702]
[1641699473051,4.18906,3138.0,3136.8,0.00568423]
[1641699473300,5.02150356,3138.0,3136.8,0.00568423]
[1641699473694,0.79728,3137.9,3136.9,3.2]
[1641699474094,0.79728,3137.9,3137.0,0.00625265]
[1641699474495,0.79728,3137.9,3137.0,2.28287229]
[1641699474894,0.79728,3137.9,3137.1,0.00568423]
[1641699475095,0.79728,3137.9,3137.1,1.97819071]
[1641699475296,0.79728,3137.9,3137.1,0.00568423]
[1641699475500,0.79728,3137.9,3137.2,0.00511581]
[1641699475698,0.79728,3137.9,3137.0,0.00625265]
[1641699476299,1.79728,3137.9,3136.9,0.30682108]
[1641699476504,1.79728,3137.9,3137.0,0.00625265]
[1641699477064,1.79728,3137.9,3136.7,3.9606834]
[1641699477065,3.0,3137.4,3136.7,3.9606834]
[1641699477256,3.458,3137.4,3136.7,3.9606834]
[1641699477457,1.05338795,3137.3,3136.8,0.00113685]
[1641699477854,5.35,3137.1,3136.6,3.9606834]
[1641699478058,1.458,3137.0,3136.6,3.9606834]
[1641699478256,1.45970527,3137.0,3136.6,3.9606834]
[1641699478456,5.19757,3136.8,3136.0,2.3840417]
[1641699478656,1.59514,3136.8,3136.0,2.3840417]
[1641699478856,1.59514,3136.8,3136.1,0.00341055]
[1641699479458,0.16592374,3136.7,3136.1,0.00341055]
[1641699480057,0.16592374,3136.7,3136.5,1.59410218]
[1641699480457,3.55,3136.6,3136.1,0.00341055]
[1641699480897,0.96349374,3136.7,3136.1,0.00341055]
[1641699481104,1.96349374,3136.7,3136.1,0.00341055]
[1641699481298,1.96349374,3136.7,3135.9,2.38858909]
[1641699481499,1.96349374,3136.7,3136.0,0.00397897]
[1641699482897,1.96349374,3136.7,3135.8,0.00511582]
[1641699483098,1.96349374,3136.7,3135.6,6.45890399]
[1641699483099,1.96349374,3136.7,3135.7,0.00568424]
[1641699483301,0.05168268,3136.6,3135.7,0.00568424]
[1641699484099,3.9879129,3136.8,3135.7,0.00568424]
[1641699484568,0.05168268,3136.6,3135.7,0.00568424]
[1641699484965,0.05168268,3136.6,3135.7,4.01523903]
[1641699485363,0.05168268,3136.6,3135.8,0.00511582]
[1641699486365,1.79757,3136.7,3135.7,0.00568424]
[1641699487163,0.16565786,3136.6,3135.7,0.00568424]
[1641699487766,0.79757,3136.7,3135.7,0.00568424]
[1641699488703,0.79757,3136.7,3135.9,1.5948545]
[1641699489095,0.79757,3136.7,3136.0,0.30397897]
[1641699489295,3.89757,3136.7,3136.0,2.30016238]
[1641699489496,3.89757,3136.7,3136.3,1.60166355]
[1641699489896,3.89757,3136.7,3136.4,0.00170527]
[1641699491596,3.89757,3136.7,3136.2,2.34146725]
[1641699491796,3.89757,3136.7,3136.3,0.0022737]
[1641699492047,1.0,3136.6,3136.3,0.0022737]
[1641699492248,1.0,3136.6,3136.3,1.60393725]
[1641699492648,1.0,3136.6,3136.4,0.00170527]
[1641699492852,3.89757,3136.7,3136.4,0.00170527]
[1641699493451,3.89757,3136.7,3136.4,0.30170527]
[1641699493652,3.89757,3136.7,3136.3,0.0022737]
[1641699493957,3.89757,3136.7,3135.2,6.9597]
[1641699493958,11.52007523,3134.5,3133.9,2.64622078]
[1641699494155,11.52007523,3134.5,3132.7,10.0848]
[1641699494156,8.35925163,3133.1,3132.7,10.0848]
[1641699494356,2.87939833,3133.1,3132.7,6.16]
[1641699494552,2.87939833,3133.1,3132.8,0.02103167]
[1641699494752,0.01257252,3132.9,3132.7,6.16]
[1641699494952,0.01257252,3132.9,3132.6,1.4734405]
[1641699495151,0.81090252,3132.9,3132.6,0.8889596]
[1641699495352,0.79833,3132.9,3132.6,0.8889596]
[1641699495898,0.79833,3132.9,3132.6,0.8389596]
[1641699496197,0.79833,3132.9,3132.7,0.58301312]
[1641699496599,0.00113684,3133.0,3132.7,0.58301312]
[1641699497598,0.00113684,3133.0,3132.7,0.88301312]
[1641699497599,0.79817,3133.0,3132.7,0.88301312]
[1641699497798,0.79817,3133.0,3132.8,0.00113684]
[1641699498601,5.35,3132.9,3132.7,0.88301312]
[1641699498799,0.79817,3133.0,3132.7,0.88301312]
[1641699499000,0.79817,3133.0,3132.7,2.97720689]
[1641699499651,3.1,3132.9,3132.7,2.97720689]
[1641699499852,3.1,3132.9,3132.7,0.88301312]
[1641699500653,3.1,3132.9,3132.7,0.58301312]
[1641699501553,3.1,3132.9,3132.7,2.67585392]
[1641699501757,3.1,3132.9,3132.7,0.58301312]
[1641699502354,0.79817,3133.0,3132.7,0.58301312]
[1641699502554,1.79817,3133.0,3132.7,0.58301312]
[1641699502754,2.59647,3133.0,3132.7,0.58301312]
[1641699503156,2.59647,3133.0,3132.7,0.88301312]
[1641699503596,0.79837,3132.9,3132.7,0.88301312]
[1641699503794,0.79837,3132.9,3132.7,0.87196984]
[1641699503993,2.59647,3133.0,3132.7,0.87196984]
[1641699504595,2.59647,3133.0,3132.7,0.82196984]
[1641699505698,2.59647,3133.0,3132.7,0.6673685]
[1641699505895,2.59647,3133.0,3132.7,0.58301312]
[1641699507246,2.67623,3133.0,3132.7,0.58301312]
[1641699507647,2.67623,3133.0,3132.6,1.1389596]
[1641699507648,1.56220649,3132.9,3132.6,1.1389596]
[1641699507846,0.07978,3132.8,3132.6,1.1389596]
[1641699508446,1.07978,3132.8,3132.6,1.1389596]
[1641699508846,1.8782,3132.8,3132.6,1.1389596]
[1641699509248,4.9782,3132.8,3132.6,1.1389596]
[1641699510248,1.8782,3132.8,3132.6,1.1389596]
[1641699510806,5.808,3132.7,3132.6,0.8389596]
[1641699510998,5.88775,3132.7,3132.6,0.8389596]
[1641699511196,0.79857,3132.2,3131.7,2.55218472]
[1641699511696,1.67692,3132.3,3131.9,0.59584781]
[1641699511697,1.59716,3132.1,3131.9,0.59584781]
[1641699511896,0.07979,3132.5,3131.9,0.59584781]
[1641699512098,0.458,3132.7,3132.0,2.55182956]
[1641699512300,3.5,3132.6,3132.0,0.00341054]
[1641699512498,0.79851,3132.5,3132.1,0.00284211]
[1641699512698,0.34198811,3132.0,3131.9,0.89584781]
[1641699514302,1.59714,3132.1,3131.9,0.89584781]
[1641699517754,0.72290989,3132.5,3131.9,0.89584781]
[1641699517955,0.64312989,3132.5,3131.9,0.89584781]
[1641699518156,0.64312989,3132.5,3132.0,0.0022737]
[1641699518598,0.79851,3132.3,3132.0,0.0022737]
[1641699518796,1.59714,3132.1,3132.0,0.0022737]
[1641699523456,2.39572,3132.1,3131.3,0.00625266]
[1641699523855,0.79857,3131.8,3131.3,0.00625266]
[1641699524053,0.79857,3131.8,3131.6,0.63149538]
[1641699524458,0.79857,3131.8,3131.7,0.00397897]
[1641699524654,1.87834,3132.2,3131.7,0.00397897]